Cogmind - Beta 15 @@@ ROGUE MODE // 2025.08.04 @ 00:45:20 Player: Inverisimilidude Result: Destroyed by as-96274 with Assembled Heavy Rifle Performance ------------- Evolutions (0) 0 Regions Visited (3) 600 Robots Destroyed (13) 65 Value Destroyed (236) 236 Prototype IDs (23) 460 Alien Tech Used (0) 0 Bonus (200) 200 TOTAL SCORE: 1561 Bonus ------- Aligned with FarCom 300 Friendly Fire -100 Cogmind --------- Core Integrity 0/250 Matter 282/300 Energy 99/100 System Corruption 5% Temperature Cool (0) Movement Core (50) Location -10/Exiles Parts ------- > --- POWER (1) -------- (None) > --- PROPULSION (2) --- (None) > --- UTILITY (2) ------ (None) > --- WEAPON (2) ------- (None) > --- INVENTORY (5) ---- Ion Engine Wheel Seismic Detector Spread Laser Autogun Peak State ------------ > --- POWER ------------ Ion Engine > --- PROPULSION ------- Improved Aluminum Leg Compact Wheel > --- UTILITY ---------- Small Storage Unit Hardened Light Armor Plating > --- WEAPON ----------- Spread Laser Latent Energy Streamer > --- INVENTORY -------- Ion Engine Wheel Compact Wheel Seismic Detector Spread Laser Autogun Autogun Heavy Hammer [Rating: 20] Favorites ----------- Power Ion Engine Engine Ion Engine Propulsion Compact Wheel Treads Light Treads Leg Improved Aluminum Leg Wheel Compact Wheel Utility Small Storage Unit Device Seismic Detector Storage Small Storage Unit Protection Hardened Light Armor Plating Weapon Spread Laser Energy Gun Spread Laser Energy Cannon Latent Energy Streamer Ballistic Gun Autogun Build | -11 -10 -10 -10 ------- Run | Yrd Mat Min Exi Slots Evolved . | . . . . Power . | . . . . Propulsion . | . . . . Utility . | . . . . Weapon . | . . . . Parts Attached 17 | 7 6 2 2 Power 1 | 1 . . . Engine 1 | 1 . . . Core . | . . . . Reactor . | . . . . Propulsion 4 | 2 2 . . Treads 1 | . 1 . . Leg 1 | . 1 . . Wheel 2 | 2 . . . Hover . | . . . . Flight . | . . . . Utility 4 | 2 . 1 1 Device 1 | 1 . . . Storage 1 | 1 . . . Processor . | . . . . Hackware . | . . . . Protection 2 | . . 1 1 Artifact . | . . . . Weapon 8 | 2 4 1 1 Energy Gun 4 | 1 3 . . Energy Cannon 1 | . . . 1 Ballistic Gun 3 | 1 1 1 . Ballistic Cannon . | . . . . Launcher . | . . . . Special Weapon . | . . . . Impact Weapon . | . . . . Slashing Weapon . | . . . . Piercing Weapon . | . . . . Special Melee Weapon . | . . . . Unidentified Prototypes . | . . . . Parts Lost 5 | . . . 5 Power 1 | . . . 1 Propulsion 2 | . . . 2 Utility 1 | . . . 1 Weapon 1 | . . . 1 Highest Loss Streak 5 | . . . 5 To Critical Strikes . | . . . . Average Backups 7 | 3 7 8 7 Power . | . 1 1 1 Propulsion 2 | 1 2 2 1 Utility 1 | . 1 2 1 Weapon 3 | 1 2 3 3 Tool/Special . | . . . . Unused Backups 7 | . 3 . 4 Power 1 | . . . 1 Propulsion 2 | . 1 . 1 Utility . | . . . . Weapon 4 | . 2 . 2 Tool/Special . | . . . . Average Slot Usage (%) 99 | . 99 100 99 Engine 13 | . 14 14 13 Leg 12 | . 5 14 13 Wheel 14 | . 17 14 13 Device 1 | . 14 . . Storage 13 | . 14 14 13 Protection 11 | . . 14 13 Energy Gun 14 | . 19 12 13 Energy Cannon 8 | . . . 11 Ballistic Gun 5 | . 7 15 2 Peak Build Rating 20 | 7 11 12 20 Average Rating 15 | 5 9 12 18 On Entrance 7 | . 7 11 12 Naked Turns 5 | . . . 5 Heaviest Build 28 | 14 17 21 28 Greatest Support 32 | 32 32 13 32 Greatest Overweight (x) 2 | . 1 1 2 Average Overweight (x) 1 | . . 1 1 Largest Inventory Capacity 8 | 8 8 8 8 Average Capacity 7 | 7 8 8 7 Most Carried 8 | 6 8 8 8 Average Carried 7 | 3 7 8 7 Final Capacity 8 | 8 8 8 5 Final Carried 8 | 6 8 8 5 Class Distribution -------------------- 100% | Mutant Dominant Class ---------------- Mutant | -10/Materials Mutant | -10/Mines Mutant | -10/Exiles Resources | -11 -10 -10 -10 ----------- Run | Yrd Mat Min Exi Matter Collected 484 | 281 40 156 7 Remotely . | . . . . Salvage Created 324 | 145 99 80 . Parts 18 | 7 5 6 . Haulers Intercepted . | . . . . Recyclers Shooed . | . . . . Parts Field Recycled . | . . . . Retrieved Matter . | . . . . Parts Self-Destructed . | . . . . Prevented . | . . . . Kills | -11 -10 -10 -10 ------- Run | Yrd Mat Min Exi Combat Hostiles Destroyed 8 | . 5 3 . Guns 8 | . 5 3 . Classes Destroyed 4 | 2 2 . . Tunneler 4 | 4 . . . Recycler 1 | 1 . . . Swarmer 4 | . 3 1 . Grunt 4 | . 2 2 . Best Kill Streak 3 | 3 3 2 . Combat Bots Only 3 | . 3 2 . Max Kills in Single Turn 1 | 1 1 1 . Gunslinging . | . . . . Exploded . | . . . . Melee . | . . . . Uniques/NPCs Destroyed . | . . . . Combat | -11 -10 -10 -10 -------- Run | Yrd Mat Min Exi Hostile Shots Fired 77 | . 13 25 39 Missed 16 | . 1 6 9 Hits 61 | . 12 19 30 Projectile 61 | . 12 19 30 Critical Strikes 4 | . . . 4 Damage Taken 1158 | . 135 225 798 Core 258 | . 17 47 194 Absorbed by Shields . | . . . . Core Remaining (%) 100 | 100 . . . Volleys Fired 45 | 21 10 13 1 Largest 2 | 2 2 2 2 Hottest 130 | 70 130 88 125 Shots Fired 89 | 42 19 26 2 Gun 88 | 42 19 26 1 Cannon 1 | . . . 1 Launcher . | . . . . Special . | . . . . Kinetic 45 | 21 1 23 . Thermal 43 | 21 18 3 1 Explosive . | . . . . Electromagnetic 1 | . . . 1 Robot Hit Streak 11 | 8 10 11 3 Robot Miss Streak 5 | 3 5 3 3 Penetration Max . | . . . . Secondary Targets 1 | . . 1 . Max Gunslinging Chain 1 | . . 1 . Shots Hit Robots 62 | 26 15 19 2 Core Hits 35 | 8 20 6 1 Critical Kills . | . . . . Critical Parts Destroyed 1 | 1 . . . Critical Strikes 2 | 2 . . . Burn 1 | 1 . . . Destroy 1 | 1 . . . Melee Attacks . | . . . . Impact . | . . . . Slashing . | . . . . Piercing . | . . . . Sneak Attacks . | . . . . Combat Hostiles . | . . . . Follow-up Attacks . | . . . . Damage Inflicted 750 | 265 204 261 20 Guns 741 | 265 204 261 11 Cannons . | . . . . Explosions 9 | . . . 9 Melee . | . . . . Ramming . | . . . . Kinetic 345 | 100 14 231 . Thermal 396 | 165 190 30 11 Explosive . | . . . . Electromagnetic 9 | . . . 9 Impact . | . . . . Slashing . | . . . . Piercing . | . . . . Highest Corruption 5 | . . . 5 Average Corruption 4 | . . . 4 Corruption Purged . | . . . . Corruption Blocked . | . . . . Overload Shots . | . . . . Overflow Damage . | . . . . Projectiles . | . . . . Explosions . | . . . . Melee . | . . . . Knockbacks . | . . . . Impact . | . . . . Kinetic . | . . . . Secondary . | . . . . Self-Inflicted Damage . | . . . . Shots . | . . . . Rammed . | . . . . Targets Rammed . | . . . . Kicked . | . . . . Crushed . | . . . . Highest Temperature 234 | 110 234 145 78 Average Temperature 66 | 37 97 75 40 Received Heat Transfer 159 | . 54 105 . Siege Activations . | . . . . Martial Activations . | . . . . Shielding Activations . | . . . . Robots Disrupted . | . . . . Combat Hostiles . | . . . . Robots Corrupted . | . . . . Combat Hostiles . | . . . . Parts Fried . | . . . . Impact Corruptions . | . . . . Robots Melted . | . . . . Combat Hostiles . | . . . . Parts Melted 2 | 1 1 . . Heat Transferred 840 | 555 235 35 15 Parts Sabotaged . | . . . . Parts Stolen . | . . . . Parts Stripped . | . . . . Power Chain Reactions . | . . . . Latent Energy Used 200 | . . . 200 LE Corruption 3 | . . . 3 Alert | -11 -10 -10 -10 ------- Run | Yrd Mat Min Exi Maximum Alert Level . | . . . . Low Security (%) 100 | 100 100 100 . Level 1 . | . . . . Level 2 . | . . . . Level 3 . | . . . . Level 4 . | . . . . Level 5 . | . . . . High Security . | . . . . Max Security . | . . . . Peak Influence 105 | 10 105 53 . Initial 13 | . 3 13 . Average 23 | . 45 15 . Influence Increases 230 | 25 135 70 . Destroy 0b10 Robot/C 160 | . 100 60 . Destroy 0b10 Robot/NC 25 | 25 . . . Destroy Leader 30 | . 20 10 . Lose Combat Pursuer 15 | . 15 . . Influence Decreases 230 | 20 105 105 . Entered New Map 24 | . 2 22 . Time Decay 206 | 20 103 83 . Squads Dispatched . | . . . . Investigation . | . . . . Extermination . | . . . . Reinforcement . | . . . . Assault . | . . . . Garrison . | . . . . Intercept . | . . . . Searches Triggered . | . . . . Construction Impeded . | . . . . Haulers Reinforced . | . . . . Active Scanning Responses . | . . . . Cargo Convoy Interrupts . | . . . . Stealth | -11 -10 -10 -10 --------- Run | Yrd Mat Min Exi Distress Signals . | . . . . Communications Jammed . | . . . . Distress Signals . | . . . . Times Spotted 20 | . 9 3 8 Peak Tracking Total 13 | . 4 2 13 Tactical Retreats 1 | . 1 . . Traps | -11 -10 -10 -10 ------- Run | Yrd Mat Min Exi Traps Triggered . | . . . . Indirectly . | . . . . Trap Hack Attempts . | . . . . Triggered . | . . . . Disarmed . | . . . . Reprogrammed . | . . . . Reused . | . . . . Traps Extracted . | . . . . Installed . | . . . . Triggered . | . . . . Machines | -11 -10 -10 -10 ---------- Run | Yrd Mat Min Exi Machines Disabled 1 | . . . 1 Max in Single Turn 1 | . . . 1 Machines Repaired . | . . . . Machines Dismantled . | . . . . Machines Sabotaged . | . . . . Overloaded Fab Kills . | . . . . Hacking | -11 -10 -10 -10 --------- Run | Yrd Mat Min Exi Machines Accessed 4 | . 3 . 1 Terminals 3 | . 3 . . Fabricators . | . . . . Repair Stations . | . . . . Recycling Units . | . . . . Scanalyzers . | . . . . Garrison Access . | . . . . Total Hacks 8 | . 7 . 1 Successful 3 | . 2 . 1 Failed 5 | . 5 . . Catastrophic 1 | . 1 . . Database Lockouts . | . . . . Manual 8 | . 7 . 1 Terminals 7 | . 7 . . Fabricators . | . . . . Repair Stations . | . . . . Recycling Units . | . . . . Scanalyzers . | . . . . Garrison Access . | . . . . Terminal Hacks 3 | . 2 . 1 Robot Analysis 1 | . 1 . . Branch Access Points 1 | . 1 . . Proto ID Catalog 1 | . . . 1 Fabricator Hacks . | . . . . Repair Station Hacks . | . . . . Recycling Unit Hacks . | . . . . Scanalyzer . | . . . . Garrison Access Hacks . | . . . . Unauthorized Hacks . | . . . . Terminals . | . . . . Fabricators . | . . . . Repair Stations . | . . . . Recycling Units . | . . . . Scanalyzers . | . . . . Garrison Access . | . . . . Data Cores Recovered . | . . . . Used . | . . . . Hacking Detections 3 | . 3 . . Full Trace Events . | . . . . Feedback Events . | . . . . Feedback Blocked . | . . . . Robot Schematics Acquired . | . . . . Robots Built . | . . . . Authchips . | . . . . Time . | . . . . Total Robot Build Rating . | . . . . Part Schematics Acquired . | . . . . Parts Built . | . . . . Authchips . | . . . . Time . | . . . . Total Part Build Rating . | . . . . Parts Repaired . | . . . . Time . | . . . . Parts Recycled . | . . . . Recycled Matter . | . . . . Retrieved Matter . | . . . . Retrieved Components . | . . . . Parts Scanalyzed . | . . . . Part Schematics Acquired . | . . . . Parts Damaged . | . . . . Bothacking | -11 -10 -10 -10 ------------ Run | Yrd Mat Min Exi Used RIF Installer . | . . . . Robots Hacked . | . . . . Non-combat . | . . . . Combat . | . . . . Robot Hacks Applied . | . . . . Relay Couplers Released . | . . . . Fabnet Peak Effective % . | . . . . Robots Rewired . | . . . . Allies Hacked . | . . . . Hacks Repelled . | . . . . Allies | -11 -10 -10 -10 -------- Run | Yrd Mat Min Exi Total Allies . | . . . . Largest Group . | . . . . Highest-Rated Group . | . . . . Highest-Rated Ally . | . . . . Total Orders . | . . . . Ally Attacks . | . . . . Total Damage . | . . . . Kills . | . . . . Allies Corrupted . | . . . . Allies Melted . | . . . . Intel | -11 -10 -10 -10 ------- Run | Yrd Mat Min Exi Active Infowar (turns) 285 | 4 281 . . Seismic 285 | 4 281 . . Robot Analysis Total 1 | . 1 . . Derelict Logs Recovered . | . . . . Drone Launches . | . . . . Drone Recoveries . | . . . . Exploration | -11 -10 -10 -10 ------------- Run | Yrd Mat Min Exi Turns Passed 2233 | 175 281 264 1513 Spaces Moved 1034 | 100 167 119 648 Core 11 | 1 . . 10 Treads . | . . . . Legs 775 | . 58 119 598 Wheels 248 | 99 109 . 40 Hover . | . . . . Flight . | . . . . Fastest Speed 50 | 50 100 190 50 Average Speed 198 | 99 137 190 231 Slowest Speed 260 | 100 190 190 260 Overloaded Moves . | . . . . Propulsion Burnouts . | . . . . Robots Hopped . | . . . . Potential Cave-ins . | . . . . Cave-ins Triggered . | . . . . Exploration Rate (%) 35 | 6 35 26 73 Regions Visited 3 Branch Regions 2 Pre-discovered Areas . | . . . . Known Exits Taken 1 | . 1 . . Unknown Exits Taken 2 | 1 . 1 . Scrap Searched . | . . . . Spaces Dug . | . . . . Terrain Destroyed 16 | . . . 16 Melee . | . . . . Projectile . | . . . . AOE 16 | . . . 16 Terrain Rammed . | . . . . Walls Destroyed . | . . . . Machines Disabled . | . . . . Actions | -11 -10 -10 -10 --------- Run | Yrd Mat Min Exi Total 1127 | 134 202 134 657 Wait 6 | . 6 . . Move 1031 | 99 166 118 648 Hop . | . . . . Pick Up 14 | 7 6 . 1 Fast Attach 10 | 6 4 . . Attach 4 | 1 1 . 2 Detach . | . . . . Swap 7 | . 1 3 3 Drop 9 | . 8 . 1 Fire 45 | 21 10 13 1 Melee . | . . . . Ram . | . . . . Kick . | . . . . Crush . | . . . . Escape Stasis . | . . . . Rewire 1 | . . . 1 Trap . | . . . . Miscellaneous . | . . . . Route ------- -11/Scrapyard -10/Materials (discovered 2 exits: *Min x2) -10/Mines -10/Exiles History --------- Turn | Location | Event 2 | -11/Scrapyard | Met Revision 17 9 | -11/Scrapyard | Discovered new exit (range 16) 176 | -11/Scrapyard | Entered Materials 279 | -10/Materials | Identified exit to Mines 309 | -10/Materials | Build established: Mutant 457 | -10/Materials | Entered Mines 464 | -10/Mines | Met a Derelict bent on vengeance 528 | -10/Mines | Found a damaged Exp. Sensor Array with a note attached 711 | -10/Mines | Deemed a non-threat by the Exiles lab entrance 713 | -10/Mines | Discovered new exit (range 5) 721 | -10/Mines | Entered Exiles 773 | -10/Exiles | Met 8R-AWN 803 | -10/Exiles | Met EX-HEX 899 | -10/Exiles | Met EX-BIN 920 | -10/Exiles | Aligned with FarCom system 922 | -10/Exiles | Given EX-Vault access code 973 | -10/Exiles | Opened EX-Vault 987 | -10/Exiles | Found Latent Energy Streamer 1038 | -10/Exiles | Warned to stay clear of 0b10 Research branches 1121 | -10/Exiles | Met EX-DEC 2063 | -10/Exiles | Visited The Gauntlet 2217 | -10/Exiles | Attacked by the Exiles 2229 | -10/Exiles | Released all parts (4) 2231 | -10/Exiles | Core integrity fell below 50% 2233 | -10/Exiles | Core integrity fell below 20% 2234 | -10/Exiles | Destroyed by as-96274 with Assembled Heavy Rifle Last Messages --------------- perimeter. Defensive protocols time, folks! 02217_ Machine disabled. 02219_ EX-DEC: "Let's see what this bad boy can do..." 02219_ EX-DEC deploys DAS Turret. 02220_ Imp. Aluminum Leg destroyed. 02220_ Knocked back. 02222_ Spread Laser destroyed. 02223_ Machine disabled. 02226_ Com. Wheel destroyed. 02228_ Ion Engine destroyed. 02228_ Hrd. Light Armor Plating destroyed. 02229_ Released Autogun. 02229_ Released Com. Wheel. 02229_ Released Sml. Storage Unit. 02229_ Released Latent Energy Streamer. 02231_ Acquired 2 matter. 02232_ EX-BIN: "I just want to science!" 02232_ Knocked back. 02233_ Acquired 5 matter. Map ----- +----------------------------------------------------+ | ????????????????????????" ???????????## | | ????????????????????????" ???????????# | | ???????????????????????"" ???????????#" "X" | | ???????????????????????"" ???????????#" """ | | ??????????????????????? "??????????#" """"" | | ????????????????????????" "?????????##" ###### | | ????????????????????????# #????????##"" #????? | | ?????????????#####????### ###?######"" #????? | | ???????????? """#####X# #"###""""""" ##???? | | ???????????? """""" " "" ##??? | | ??????????? "" """ " #### | | ??????????? " " | | ???????????? | | ?????????????# | | ??????????????# | | ???????????????# | | ???????????????##" | | ????????????????#""" """""" | | ??????????????###" ######""" | | ?????????????##; ""##????#####""" | | ????????????##;; """##?????????##""" | | ????????????# ; """##???????????#"""" | | ????????????# ; c ""#???????????##"" | | ????????????# ; ########??####"""" | | ????????????# ; ## ####""" | | ????????????# ; @ """" | | ?????????????#;; t | | ?????????????##; a aacaa | | ??????????????### a | | ????????????????#" " "" | | ????????????????#""" % ""## ##""" " | | ????????????????#"" "#### ######"" | | ????????????????#" """##??# #????### | | ????????????????#""" """#???# #??????# | | ????????????????## /! ""##???! ??????? | | ?????????????????#"" %[% ""##????" ?????? | | ?????????????????##""" =] ##????#" ?????? | | ??????????????????##"""" ##?????#!!""!"????? | | ???????????????????### #??????########???? | | ?????????????????????##### ##?????????????????? | | ?????????????????????????## #??????????????????? | | ??????????????????????????# #??????????????????? | | ??????????????????????????# #??????????????????? | | ??????????????????????????# #??????????????????? | | ?????????????????###??????# #??????????????????? | | ???????????????#"""""?????# #??????????????????? | | ???????"????????"""""""???# #??????????????????? | | ?????""""??????#" """"#??# #??????????????????? | | ?????""" "??????"" """???# #??????????????????? | | ?????"" ??????"" ""???# #??????????????????? | +----------------------------------------------------+ Best States ------------- Heat Dissipation 25 Energy Generation 10 Energy Capacity 250 Matter Stores 300 Matter Capacity 300 Sight Range 16 Terrain Scan Density 10 Armor Coverage 150 Evasion (%) 50 Item Schematics ----------------- None Robot Schematics ------------------ None Fabricated ------------ Nothing Repaired ---------- Nothing Alien Tech Used ----------------- None Achievements -------------- None Challenges ------------ None Game ------ Seed RiotVisualCloak Manual? 0 Play Time 00:12:07 Cumulative 94.7 hours Start 2025.08.04 @ 00:34:46 End 2025.08.04 @ 00:45:20 Sessions 1 Manual Loads 0 Difficulty Rogue Special Mode None Game No. 113 Rogue 113 Adventurer 0 Explorer 0 Win Type - Total 0 Types 0/0/0/0/0/0/0/0/0/0 Lore% 58 Gallery% 44 Achievement% 42 Wizard Run 0 Options --------- Layout 1 ASCII 0 Keyboard 0 Movement Arrows Keybinds 0 Fullscreen 1 Font 24/Smallcaps Map View 50x35 Zoom Use 0% Tactical HUD 1 Map Filters NONE Filters NONE Steam 1 RUN: 596dbd88-1060-4ca5-b595-38446f950ac7